bitfinex/quotes_SOLUSD_20240930
["timestamp","ask_amount","ask_price","bid_price","bid_amount"]
[1727724615636,6.4469,155.12,155.08,6.4482]
[1727724615938,6.4469,155.12,155.09,1.28931562]
[1727724616530,6.4462,155.13,155.09,7.73711562]
[1727724616909,6.4462,155.13,155.08,13.0452]
[1727724618015,6.4466,155.12,155.08,13.0452]
[1727724619027,6.4461,155.14,155.09,30.224684]
[1727724619223,32.5051144,155.18,155.09,30.224684]
[1727724619432,6.4462,155.13,155.09,30.224684]
[1727724619824,6.4458,155.14,155.1,6.4474]
[1727724620817,6.4454,155.15,155.11,7.73609396]
[1727724621024,6.445,155.16,155.11,7.73609396]
[1727724621312,6.445,155.16,155.12,6.4464]
[1727724621518,6.445,155.16,155.12,7.73540589]
[1727724622038,6.4446,155.17,155.13,6.4461]
[1727724622234,6.4446,155.17,155.14,1.28891551]
[1727724622542,6.445,155.16,155.14,1.28891551]
[1727724623057,6.445,155.16,155.11,31.6864]
[1727724623342,6.445,155.16,155.12,6.4466]
[1727724624034,0.8472144,155.18,155.1,20.0]
[1727724624348,6.4459,155.14,155.09,6.4475]
[1727724624520,6.4462,155.13,155.09,6.4475]
[1727724624847,6.447,155.11,155.08,6.597]
[1727724625139,16.1119,155.17,155.08,6.597]
[1727724625140,6.4467,155.12,155.08,6.597]
[1727724629253,6.4471,155.11,155.08,6.597]
[1727724629644,32.7202,155.17,155.08,6.597]
[1727724629834,6.4466,155.12,155.09,1.2893001]
[1727724630224,6.4466,155.12,155.08,13.0452]
[1727724630225,6.447,155.11,155.08,6.597]
[1727724630428,6.4476,155.1,155.07,15.0425]
[1727724631327,6.4471,155.11,155.07,15.0425]
[1727724632540,16.1139,155.15,155.07,15.0425]
[1727724632749,6.4467,155.12,155.08,7.73738081]
[1727724632941,6.4467,155.12,155.07,31.1639]
[1727724633138,6.4467,155.12,155.08,1.28930585]
[1727724633636,6.4467,155.12,155.08,7.73750585]
[1727724634038,6.4467,155.12,155.07,31.1639]
[1727724634345,6.4467,155.12,155.08,1.28930624]
[1727724634933,6.447,155.11,155.08,1.28930624]
[1727724635243,6.447,155.11,155.07,37.6124]
[1727724637159,16.1139,155.15,155.07,15.0425]
[1727724637327,6.4471,155.11,155.07,15.0425]
[1727724637830,6.4471,155.11,155.07,21.4911]
[1727724639632,6.4471,155.11,155.08,1.28932028]
[1727724640167,6.4471,155.11,155.07,21.4911]
[1727724640465,6.4471,155.11,155.08,1.28932204]
[1727724640639,6.4467,155.12,155.08,7.73752204]
[1727724641037,16.6083,155.17,155.09,11.54442243]
[1727724641344,6.4454,155.15,155.11,6.447]
[1727724641545,6.4454,155.15,155.12,1.28904024]
[1727724641934,6.4454,155.15,155.11,6.447]
[1727724643560,6.4459,155.14,155.1,16.1182]
[1727724643743,6.4463,155.13,155.09,6.0834]
[1727724644236,16.9579144,155.18,155.09,6.0834]
[1727724644563,6.4463,155.13,155.09,6.0834]
[1727724645961,6.4466,155.12,155.09,6.0834]
[1727724646154,6.4471,155.11,155.08,20.0]
[1727724646662,6.4476,155.1,155.07,15.0425]
[1727724646848,6.4471,155.11,155.07,15.0425]
[1727724647161,6.4471,155.11,155.07,21.4911]
[1727724647535,31.6133,155.16,155.07,15.0425]
[1727724647739,6.4466,155.12,155.08,6.4481]
[1727724648341,6.4471,155.11,155.07,21.4911]
[1727724649670,6.4467,155.12,155.08,1.28933403]
[1727724650163,6.4462,155.13,155.09,6.4478]
[1727724650364,6.4462,155.13,155.1,1.28925391]
[1727724651744,6.4467,155.12,155.09,1.28925583]
[1727724655462,6.4462,155.13,155.09,7.73705583]
[1727724655668,6.4458,155.14,155.1,6.4474]
[1727724656162,6.4462,155.13,155.09,30.224684]
[1727724659670,0.8472144,155.18,155.11,23.776884]
[1727724659974,0.8472144,155.18,155.12,12.83334291]
[1727724660270,6.4445,155.17,155.13,21.9305]
[1727724660575,6.4445,155.17,155.14,1.28886598]
[1727724660967,0.8472144,155.18,155.14,12.83328841]
[1727724661266,0.8472144,155.18,155.15,6.4453]
[1727724661469,0.8472144,155.18,155.16,7.73325626]
[1727724661846,0.8472144,155.18,155.14,27.65842243]
[1727724661847,0.8472144,155.18,155.15,6.4452]
[1727724662445,0.8472144,155.18,155.15,23.776884]
[1727724663252,6.4446,155.17,155.15,23.776884]
[1727724663575,6.4446,155.17,155.14,16.114]
[1727724663576,6.4445,155.17,155.14,16.114]
[1727724663868,6.4445,155.17,155.13,21.9303]
[1727724664748,6.4452,155.16,155.13,15.4845]
[1727724665374,6.4454,155.15,155.11,22.3829]
[1727724666474,0.8472144,155.18,155.11,22.3829]
[1727724666475,16.9582144,155.18,155.11,6.2659]
[1727724666650,6.4458,155.14,155.11,6.2659]
[1727724667556,6.4458,155.14,155.1,20.0]
[1727724667878,6.4458,155.14,155.1,26.4474]
[1727724669177,6.4452,155.16,155.11,6.4469]
[1727724669880,32.1140144,155.18,155.11,6.4469]
[1727724670061,6.4454,155.15,155.11,6.4469]
[1727724672163,6.4454,155.15,155.1,37.99172243]
[1727724674086,6.4454,155.15,155.1,31.54442243]
[1727724674298,6.4454,155.15,155.11,6.4469]
[1727724675091,6.4454,155.15,155.12,1.2890377]
[1727724675274,6.4454,155.15,155.11,6.4469]
[1727724675664,6.4454,155.15,155.1,54.10962243]
[1727724675986,6.4454,155.15,155.11,1.28908428]
[1727724676594,6.4454,155.15,155.11,7.73588428]
[1727724677374,6.4454,155.15,155.11,6.4468]
[1727724680578,6.4458,155.14,155.1,54.10962243]
[1727724680898,16.1127,155.16,155.09,16.002]
[1727724681891,6.4463,155.13,155.09,22.4498]
[1727724685187,6.4446,155.17,155.13,6.446]
[1727724685504,7.2914144,155.18,155.14,7.73434304]
[1727724686296,0.8472144,155.18,155.11,20.0]
[1727724686499,6.4452,155.16,155.11,37.99122243]
[1727724687081,6.4454,155.15,155.11,37.99122243]
[1727724688489,6.4454,155.15,155.11,31.54442243]
[1727724688896,6.4454,155.15,155.11,20.0]
[1727724689702,6.4458,155.14,155.11,20.0]
[1727724690282,6.4458,155.14,155.11,20.3872]
[1727724690479,0.8472144,155.18,155.11,0.3872]
[1727724690480,6.4462,155.13,155.11,0.3872]
[1727724690788,16.0609,155.17,155.11,0.3872]
[1727724691588,6.4466,155.12,155.11,0.3872]
[1727724692093,6.4463,155.13,155.11,0.3872]
[1727724692691,6.4466,155.12,155.11,0.3872]
[1727724700001,46.304484,155.12,155.11,0.3872]
[1727724701788,6.4498,155.05,155.01,32.689]
[1727724701997,6.45,155.04,155.01,32.689]
[1727724702209,6.45,155.04,155.01,16.5617]
[1727724702403,6.45,155.04,155.0,6.4512]
[1727724703111,6.45,155.04,154.99,29.91496621]
[1727724703297,6.45,155.04,154.99,26.4518]
[1727724703494,6.45,155.04,155.0,6.4515]
[1727724703694,6.45,155.04,155.01,20.0]
[1727724709200,6.4496,155.05,155.02,1.28999186]
[1727724709508,6.4496,155.05,155.01,6.4511]
[1727724710020,6.4496,155.05,155.0,16.1288]
[1727724710021,6.4503,155.03,155.0,16.1288]
[1727724710191,23.776884,155.08,155.0,16.1288]
[1727724710394,6.45,155.04,155.01,1.29001041]
[1727724711217,6.45,155.04,155.0,22.5803]
[1727724712594,6.45,155.04,155.01,1.29000791]
[1727724714519,16.1202,155.09,155.01,7.74090791]
[1727724714520,6.4496,155.05,155.01,7.74090791]
[1727724716116,6.4496,155.05,155.01,6.4509]
[1727724716412,6.4496,155.05,155.0,16.1288]
[1727724716413,6.4496,155.05,155.02,6.4507]
[1727724716841,6.4496,155.05,155.03,1.2898513]
[1727724717624,6.4496,155.05,155.02,6.4507]
[1727724717809,6.4496,155.05,155.01,6.451]
[1727724718721,16.1202,155.09,155.0,16.1288]
[1727724719507,6.4503,155.03,155.0,22.5804]
[1727724719823,6.45,155.04,155.0,22.5804]
[1727724720328,6.652,155.1,154.97,32.644]
[1727724720329,15.7618,155.07,154.97,32.644]
[1727724720625,6.4509,155.02,154.98,26.4523]
[1727724721429,6.4504,155.03,154.99,6.4519]
[1727724725126,6.45,155.04,154.99,6.4519]
[1727724725604,15.7618,155.07,154.99,6.4519]
[1727724725605,22.2105,155.07,155.02,6.4504]
[1727724725805,6.4487,155.07,155.03,7.74002656]
[1727724726119,6.4491,155.06,155.02,6.4507]
[1727724727512,6.4495,155.05,155.01,42.5787]
[1727724730022,6.4503,155.04,154.99,6.4519]
[1727724730213,39.896984,155.09,155.0,20.0]
[1727724730412,6.4501,155.04,155.0,20.0]
[1727724730621,6.4501,155.04,155.0,26.4515]
[1727724732129,6.4501,155.04,155.01,1.29002903]
[1727724733324,39.896984,155.09,155.01,1.29002903]
[1727724733721,6.4493,155.06,155.02,6.4507]
[1727724733918,6.4495,155.05,155.03,1.28986631]
[1727724734233,6.4491,155.06,155.03,1.28986631]
[1727724734805,16.1201,155.09,155.03,1.28986631]
[1727724735036,6.4495,155.05,155.01,7.74088904]
[1727724735417,6.4495,155.05,155.01,6.451]
[1727724736523,6.4495,155.05,155.02,1.28989484]
[1727724737242,6.4495,155.05,155.01,6.451]
[1727724737433,6.4495,155.05,155.02,1.28989487]
[1727724737935,6.4495,155.05,155.01,6.451]
[1727724738133,16.1201,155.09,155.02,1.28985486]
[1727724738342,6.4491,155.06,155.02,7.74035486]
[1727724739224,16.4484,155.11,155.02,1.28985486]
[1727724739424,6.4487,155.07,155.03,6.4502]
[1727724739620,6.4479,155.09,155.05,6.4494]
[1727724739817,6.4479,155.09,155.06,1.28958534]
[1727724740434,6.4475,155.1,155.06,1.28958534]
[1727724740742,6.0256,155.14,155.07,1.28953395]
[1727724741031,6.447,155.11,155.07,7.73803395]
[1727724742315,15.8842,155.15,155.06,11.54442243]
[1727724742540,15.8842,155.15,155.03,39.486984]
[1727724742541,23.5715144,155.18,155.09,6.4475]
[1727724742837,6.4467,155.12,155.08,22.5683]
[1727724743140,6.447,155.11,155.08,16.1202]
[1727724743724,16.1129,155.16,155.07,12.8788]
[1727724743939,6.447,155.11,155.07,12.8788]
[1727724748519,6.447,155.11,155.07,6.4303]
[1727724748726,7.4607144,155.18,155.03,39.486984]
[1727724748727,6.4486,155.08,155.03,28.5248]
[1727724748932,6.4479,155.09,155.03,22.0748]
[1727724749138,6.4479,155.09,155.05,6.4495]
[1727724750741,6.4479,155.09,155.06,1.28955922]
[1727724751238,6.4479,155.09,155.05,6.4495]
[1727724755242,6.4482,155.08,155.04,34.11872243]
[1727724763240,16.117,155.12,155.04,20.0]
[1727724763430,23.776884,155.11,155.01,16.127]
[1727724763633,6.4498,155.05,155.01,22.5779]
[1727724764143,6.4492,155.06,155.02,6.4506]
[1727724766343,6.4497,155.05,155.02,20.0]
[1727724768438,16.1192,155.1,155.02,20.0]
[1727724768645,6.4492,155.06,155.02,26.4507]
[1727724769239,6.4497,155.05,155.02,20.0]
[1727724769424,16.1192,155.1,155.02,20.0]
[1727724769622,6.4492,155.06,155.02,20.0]
[1727724772641,6.4487,155.07,155.03,6.4502]
[1727724772938,6.4487,155.07,155.03,7.73998564]
[1727724773150,6.4482,155.08,155.04,6.4497]
[1727724773444,6.4483,155.08,155.04,6.4499]
[1727724775142,16.4484,155.12,155.04,31.54442243]
[1727724775329,6.4479,155.09,155.05,7.73878466]
[1727724776030,16.4484,155.12,155.05,1.28958466]
[1727724776235,6.4466,155.12,155.06,11.54442243]
[1727724776440,6.447,155.11,155.07,6.4486]
[1727724778941,6.4474,155.1,155.07,23.776884]
[1727724781353,6.447,155.11,155.07,30.225384]
[1727724782549,15.2127,155.16,155.07,23.776884]
[1727724782734,6.4475,155.1,155.06,41.77030643]
[1727724783433,6.4471,155.11,155.07,6.4486]
[1727724786558,16.1147,155.14,155.07,6.4486]
[1727724786924,15.2127,155.16,155.06,35.32130643]
[1727724787154,6.4462,155.13,155.08,35.32130643]
[1727724787449,6.4462,155.13,155.09,7.73696367]
[1727724787630,6.4462,155.13,155.08,35.32130643]
[1727724787631,6.4462,155.13,155.08,41.76940643]
[1727724789950,6.4462,155.13,155.08,30.224984]
[1727724790262,6.4462,155.13,155.08,41.76940643]
[1727724791536,6.4466,155.12,155.08,41.76940643]
[1727724791857,6.4475,155.1,155.08,23.776884]
[1727724792050,6.4471,155.11,155.08,23.776884]
[1727724793152,6.4471,155.11,155.08,20.0]
[1727724793451,6.4475,155.1,155.07,27.66562243]
[1727724793648,6.4475,155.1,155.04,21.6084]
[1727724793649,6.4482,155.09,155.05,6.4494]
[1727724794946,6.4482,155.09,155.06,20.0]
[1727724796836,16.1156,155.13,155.07,1.28948188]
[1727724797041,6.447,155.11,155.07,7.73808188]
[1727724797246,69.9945,155.16,155.06,27.66692243]
[1727724797744,6.4473,155.11,155.07,6.4486]
[1727724798051,6.4473,155.11,155.06,27.66692243]
[1727724798260,6.4473,155.11,155.06,34.11582243]
[1727724798659,6.4473,155.11,155.07,23.776884]
[1727724799040,6.4473,155.11,155.07,30.225384]
[1727724799751,6.4469,155.12,155.08,6.4482]
[1727724799957,6.4461,155.14,155.09,7.73671406]
[1727724800260,6.4461,155.14,155.1,30.224184]
[1727724800642,6.445,155.16,155.11,6.4466]
[1727724800841,6.445,155.16,155.12,1.28899191]
[1727724801146,6.4454,155.15,155.1,57.51210643]
[1727724801453,6.4454,155.15,155.1,63.95940643]
[1727724801652,0.8472144,155.18,155.1,63.95940643]
[1727724801653,6.4458,155.14,155.1,63.95940643]
[1727724802270,0.8472144,155.18,155.1,22.1908]
[1727724802434,6.4462,155.13,155.1,22.1908]
[1727724802939,6.4462,155.13,155.1,6.0726]
[1727724803150,6.4466,155.12,155.08,43.776884]
[1727724803362,16.1118,155.17,155.08,43.776884]
[1727724803363,6.447,155.11,155.08,43.776884]
[1727724803649,0.8472144,155.18,155.07,22.5695]
[1727724803650,6.4474,155.1,155.07,16.121]
[1727724803858,6.4471,155.11,155.07,16.121]
[1727724805039,6.4471,155.11,155.07,22.5696]
[1727724810348,6.4476,155.1,155.07,16.121]
[1727724810664,6.4485,155.08,155.05,6.6591]
[1727724813779,6.4485,155.08,155.05,20.0]
[1727724814065,6.4485,155.08,155.04,16.124]
[1727724814253,16.0564,155.14,155.03,20.0]
[1727724814254,6.4492,155.06,155.03,20.0]
[1727724814657,16.0564,155.14,155.01,6.627]
[1727724814658,16.12,155.09,155.01,6.627]
[1727724814839,6.4496,155.05,155.01,13.0781]
[1727724815251,6.45,155.04,155.0,32.4099]
[1727724815450,16.12,155.09,155.0,16.2814]
[1727724815451,6.4505,155.03,155.0,16.2814]
[1727724815663,6.4505,155.03,154.98,17.99672243]
[1727724816038,6.4508,155.02,154.98,17.99672243]
[1727724816763,6.4504,155.03,154.98,17.99672243]
[1727724816963,6.4504,155.03,154.99,21.29005605]
[1727724820746,6.4504,155.03,154.99,20.0]
[1727724821359,6.4504,155.03,155.0,1.29005877]
[1727724822269,6.4504,155.03,155.01,1.29005871]
[1727724822651,6.4504,155.03,154.99,20.0]
[1727724825261,6.4508,155.02,154.98,20.0]
[1727724831271,6.4517,155.0,154.97,16.1317]
[1727724833474,6.4523,154.99,154.95,6.4535]
[1727724833687,16.1265,155.03,154.94,16.1345]
[1727724833853,6.4528,154.97,154.94,16.1345]
[1727724835161,16.1283,155.01,154.91,22.5929]
[1727724835162,6.4537,154.95,154.91,22.5929]
[1727724835367,15.8773,154.98,154.91,16.1379]
[1727724836076,6.4533,154.96,154.92,6.4548]
[1727724836279,6.454,154.95,154.91,16.1379]
[1727724837260,6.4533,154.96,154.92,6.4549]
[1727724837553,6.4533,154.96,154.91,16.1379]
[1727724837754,6.4533,154.96,154.91,22.5931]
[1727724841280,6.4533,154.96,154.92,6.4548]
[1727724843064,6.4533,154.96,154.93,1.29065142]
[1727724843461,6.4533,154.96,154.92,6.4548]
[1727724849790,6.454,154.95,154.91,22.5931]
[1727724850082,6.4541,154.94,154.91,16.1379]
[1727724850863,15.8773,154.98,154.85,61.33290513]
[1727724851081,16.1325,154.97,154.88,16.1406]
[1727724851286,6.4556,154.91,154.87,6.4568]
[1727724852296,6.4556,154.91,154.88,20.0]
[1727724852791,16.6054,154.93,154.88,20.0]
[1727724852792,6.455,154.92,154.88,20.0]
[1727724852970,6.455,154.92,154.88,6.4566]
[1727724853382,16.6054,154.93,154.86,6.4572]
[1727724854066,6.4558,154.9,154.86,6.4572]
[1727724855087,16.6054,154.93,154.85,16.1438]
[1727724855283,6.4562,154.89,154.85,22.6015]
[1727724864698,32.7421,154.93,154.85,16.1438]
[1727724864897,6.4566,154.88,154.85,16.1438]
[1727724865392,32.7421,154.93,154.85,16.1438]
[1727724865393,6.4562,154.89,154.85,22.6016]
[1727724867503,6.4567,154.88,154.85,16.1438]
[1727724872100,6.4562,154.89,154.86,1.29136233]
[1727724873290,6.4562,154.89,154.85,22.6015]
[1727724874199,6.4567,154.88,154.85,16.1438]
[1727724875998,6.4563,154.89,154.85,23.89297026]
[1727724884295,6.4563,154.89,154.85,22.6016]
[1727724890119,6.4563,154.89,154.86,1.29126792]
[1727724890496,6.4563,154.89,154.85,22.6016]
[1727724890711,6.4567,154.88,154.84,6.4581]
[1727724890918,32.7421,154.93,154.84,6.4581]
[1727724890919,6.457,154.87,154.84,6.4581]
[1727724891307,6.4567,154.88,154.84,6.4581]
[1727724896925,6.4567,154.88,154.84,9.93231603]
[1727724897110,6.4567,154.88,154.84,6.4581]
[1727724899115,6.4567,154.88,154.85,3.47904205]
[1727724899311,6.4567,154.88,154.84,6.4581]
[1727724899510,6.4567,154.88,154.85,3.47902722]
[1727724899725,6.4567,154.88,154.84,6.4581]
[1727724900023,6.4567,154.88,154.85,3.47902722]
[1727724900220,6.4567,154.88,154.84,6.4581]
[1727724900524,6.4567,154.88,154.85,3.47929199]
[1727724900706,6.4567,154.88,154.84,6.4581]
[1727724900911,6.457,154.87,154.85,3.47929199]
[1727724901213,6.4583,154.84,154.8,6.4595]
[1727724902818,6.4583,154.84,154.81,20.0]
[1727724903013,6.4581,154.85,154.82,1.2916506]
[1727724906116,6.4581,154.85,154.81,26.4594]
[1727724906825,6.4583,154.84,154.81,20.0]
[1727724908224,6.4567,154.88,154.84,6.4582]
[1727724908418,6.4562,154.89,154.85,7.74890017]
[1727724908830,6.4566,154.88,154.84,26.458]
[1727724910728,6.4566,154.88,154.85,1.29132585]
[1727724911837,6.4554,154.91,154.87,6.4569]
[1727724912016,6.4554,154.91,154.88,1.29116623]
[1727724912534,6.4558,154.9,154.86,6.4573]
[1727724920334,6.4555,154.91,154.87,6.457]
[1727724920516,16.6054,154.93,154.86,43.776884]
[1727724920517,6.4558,154.9,154.86,50.234184]
[1727724923839,6.4558,154.9,154.86,26.4573]
[1727724925620,6.4562,154.89,154.85,22.602]
[1727724925847,6.4575,154.86,154.82,39.2305]
[1727724926353,6.4575,154.86,154.83,21.29151759]
[1727724929145,6.4575,154.86,154.83,20.0]
[1727724929535,6.4575,154.86,154.82,22.606]
[1727724929735,6.4578,154.85,154.82,16.147]
[1727724930422,15.2452,154.88,154.8,20.0]
[1727724930619,6.459,154.83,154.79,29.0464]
[1727724930844,6.459,154.83,154.79,22.5862]
[1727724931144,6.459,154.83,154.79,29.0465]
[1727724931520,6.459,154.83,154.79,22.5862]
[1727724931835,6.459,154.83,154.8,20.0]
[1727724932746,6.4596,154.81,154.77,6.4608]
[1727724934018,6.4592,154.82,154.78,20.0]
[1727724936951,6.4592,154.82,154.77,6.4608]
[1727724941231,6.4587,154.83,154.79,6.4603]
[1727724941433,15.2452,154.88,154.8,1.29181186]
[1727724941738,15.2452,154.88,154.79,6.4603]
[1727724942348,15.2452,154.88,154.78,39.928284]
[1727724942553,6.459,154.83,154.79,20.0]
[1727724944854,23.776884,154.87,154.78,16.1514]
[1727724945043,15.2452,154.88,154.78,16.1514]
[1727724945250,6.4583,154.84,154.8,22.6093]
[1727724946346,6.4581,154.85,154.81,6.4593]
[1727724947651,6.4583,154.84,154.8,22.6093]
[1727724952153,6.4571,154.87,154.83,6.4586]
[1727724952344,6.4571,154.87,154.84,1.29148504]
[1727724952752,6.4574,154.86,154.82,22.6064]
[1727724952952,6.4574,154.86,154.83,1.29151426]
[1727724953955,15.2452,154.88,154.84,1.29151756]
[1727724954154,6.457,154.87,154.84,1.29151756]
[1727724955560,6.457,154.87,154.83,6.4586]
[1727724955858,6.4574,154.86,154.82,22.6064]
[1727724958652,15.2452,154.88,154.82,16.1474]
[1727724958851,6.4572,154.87,154.83,6.4586]
[1727724960855,6.4574,154.86,154.82,22.6063]
[1727724961167,15.2452,154.88,154.81,20.0]
[1727724961168,6.4583,154.84,154.81,20.0]
[1727724962976,6.4583,154.84,154.81,21.29168742]
[1727724963174,6.4583,154.84,154.81,20.0]
[1727724965678,6.458,154.85,154.82,1.29168845]
[1727724966263,6.4576,154.86,154.82,7.75048845]
[1727724967167,31.3869,154.88,154.83,6.4586]
[1727724967168,6.4571,154.87,154.83,6.4586]
[1727724967354,6.4571,154.87,154.84,1.29147817]
[1727724967546,6.4571,154.87,154.83,6.4586]
[1727724967752,6.4571,154.87,154.82,30.235784]
[1727724968167,6.4575,154.86,154.82,30.235784]
[1727724968362,6.4575,154.86,154.82,6.4589]
[1727724968571,6.4579,154.85,154.81,34.15212243]
[1727724968857,6.4579,154.85,154.81,22.6077]
[1727724969059,6.4579,154.85,154.81,16.1482]
[1727724969258,6.4584,154.84,154.81,17.4398199]
[1727724969771,6.4584,154.84,154.81,16.1482]
[1727724969975,6.4584,154.84,154.79,26.88192243]
[1727724970282,16.143,154.87,154.79,15.3375]
[1727724970480,6.4591,154.82,154.78,34.15642243]
[1727724971185,6.4591,154.82,154.79,4.7665546]
[1727724971675,6.4591,154.82,154.79,24.7665546]
[1727724972969,6.4588,154.83,154.79,23.47475491]
[1727724975565,6.4588,154.83,154.8,1.29180628]
[1727724976581,6.4588,154.83,154.79,20.0]
[1727724977167,6.4592,154.82,154.79,20.0]
[1727724977368,6.4596,154.81,154.79,20.0]
[1727724978685,6.4596,154.81,154.79,21.29189415]
[1727724979064,16.1449,154.85,154.79,21.29189415]
[1727724979268,6.4592,154.82,154.79,21.29189415]
[1727724982388,6.4592,154.82,154.79,20.0]
[1727724982591,6.4595,154.81,154.79,20.0]
[1727724982768,6.4595,154.81,154.78,17.44324752]
[1727724983288,6.4595,154.81,154.78,20.0]
[1727724983480,16.1449,154.85,154.77,20.0]
[1727724983667,16.1449,154.85,154.76,20.0]
[1727724983668,6.4603,154.79,154.76,20.0]
[1727724984086,6.4603,154.79,154.75,27.69852243]
[1727724984291,6.4603,154.79,154.75,34.16052243]
[1727724984680,6.4603,154.79,154.76,1.2921166]
[1727724984875,6.4603,154.79,154.75,34.16052243]
[1727724986781,32.6053,154.83,154.73,6.4627]
[1727724986782,16.1491,154.81,154.73,6.4627]
[1727724986989,6.4609,154.78,154.73,6.4627]
[1727724987192,6.4609,154.78,154.74,1.29224897]
[1727724988179,6.4609,154.78,154.74,21.29224897]
[1727724988489,6.4609,154.78,154.74,7.75444897]
[1727724989291,16.1491,154.81,154.74,12.8366714]
[1727724989600,6.4605,154.79,154.75,6.462]
[1727724989801,16.1491,154.81,154.77,6.4611]
[1727724989802,6.4596,154.81,154.77,6.4611]
[1727724989982,6.4596,154.81,154.78,1.29196535]
[1727724991392,6.4591,154.82,154.78,30.237484]
[1727724991594,6.4591,154.82,154.78,18.00502243]
[1727724991790,6.4588,154.83,154.78,18.00502243]
[1727724993102,6.4588,154.83,154.79,6.4603]
[1727724997112,6.4581,154.85,154.8,6.4596]
[1727724997407,6.458,154.85,154.81,7.75079794]
[1727724998583,16.1402,154.9,154.82,6.4588]
[1727724998584,6.4574,154.86,154.82,6.4588]
[1727724998804,6.4574,154.86,154.83,1.29151135]
[1727724999295,6.4571,154.87,154.83,1.29151135]
[1727724999514,6.4571,154.87,154.82,18.00322243]
[1727724999706,16.1402,154.9,154.82,11.54442243]
[1727724999997,6.4571,154.87,154.82,34.15062243]
[1727725000409,6.4574,154.86,154.82,34.15062243]
[1727725001387,6.4574,154.86,154.83,1.29148264]
[1727725004115,6.4574,154.86,154.82,27.69172243]
[1727725007905,6.454,154.95,154.88,13.0405]
[1727725008110,6.4529,154.97,154.89,26.4559]
[1727725008318,6.4538,154.95,154.89,32.83517931]
[1727725008613,15.5201,155.0,154.89,32.83517931]
[1727725008614,15.5201,155.0,154.91,20.0]
[1727725008908,6.4529,154.97,154.92,1.29076056]
[1727725009221,6.4529,154.97,154.91,20.0]
[1727725009416,38.35476149,155.0,154.92,1.290756]
[1727725009591,9.53125626,154.99,154.9,35.32130643]
[1727725009790,30.09779,154.99,154.9,35.32130643]
[1727725010090,30.09779,154.99,154.91,1.29078832]
[1727725010411,30.09779,154.99,154.89,20.0]
[1727725010412,6.4526,154.98,154.89,20.0]
[1727725010601,8.72072775,154.98,154.89,20.0]
[1727725011590,2.26812775,154.98,154.89,20.0]
[1727725011802,6.4531,154.97,154.89,32.83540941]
[1727725012097,6.4531,154.97,154.89,39.29130941]
[1727725012315,6.4531,154.97,154.91,11.54442243]
[1727725012616,6.4531,154.97,154.91,12.83529204]
[1727725012823,6.4543,154.94,154.86,6.4572]
[1727725013122,6.4543,154.94,154.87,1.29118089]
[1727725014406,43.776884,154.97,154.88,11.54442243]
[1727725014607,6.4534,154.96,154.88,11.54442243]
[1727725015415,6.4538,154.95,154.88,11.54442243]
[1727725015994,6.4542,154.94,154.88,11.54442243]
[1727725019013,6.4535,154.96,154.9,11.54442243]
[1727725019209,6.4537,154.95,154.89,11.54442243]
[1727725019518,6.4537,154.95,154.9,1.29101194]
[1727725020708,6.4537,154.95,154.89,18.00052243]
[1727725020908,6.4537,154.95,154.9,23.776884]
[1727725021110,6.4537,154.95,154.89,18.00052243]
[1727725021506,6.4537,154.95,154.9,1.29094406]
[1727725022932,6.4537,154.95,154.89,18.00052243]
[1727725024306,6.4537,154.95,154.9,1.29090217]
[1727725025420,31.6492,155.0,154.9,1.29090217]
[1727725025623,31.6492,155.0,154.88,6.1086]
[1727725025624,6.4549,154.92,154.88,6.1086]